Department Family,Entity,Date Paid,Expense Type,Expense Area,Supplier,Transaction Number,Amount (�),Supplier VAT Registration Number
BEIS,Met Office,2023-06-09,06 ACCOMMODATION,CHIEF FINANCIAL OFFICER,A BOTHROYD,480630,1940,N/A
BEIS,Met Office,2023-06-14,06 ACCOMMODATION,CHIEF FINANCIAL OFFICER,Aberdeenshire Council,480858,3486,6637545408
BEIS,Met Office,2023-06-14,06 ACCOMMODATION,CHIEF FINANCIAL OFFICER,Aberdeenshire Council,480814,4980,6637545408
BEIS,Met Office,2023-06-05,06 ACCOMMODATION,CHIEF FINANCIAL OFFICER,ABOVE THE REST COMMERCIAL CLEANING LTD,480297,1,166969348
BEIS,Met Office,2023-06-05,06 ACCOMMODATION,CHIEF FINANCIAL OFFICER,ABOVE THE REST COMMERCIAL CLEANING LTD,480299,1,166969348
BEIS,Met Office,2023-06-05,06 ACCOMMODATION,CHIEF FINANCIAL OFFICER,ABOVE THE REST COMMERCIAL CLEANING LTD,480299,40,166969348
BEIS,Met Office,2023-06-05,06 ACCOMMODATION,CHIEF FINANCIAL OFFICER,ABOVE THE REST COMMERCIAL CLEANING LTD,480297,564,166969348
BEIS,Met Office,2023-06-28,11 SERVICES,CHIEF FINANCIAL OFFICER,ACTIVE PEST MANAGEMENT,481192,86.1,791419116
BEIS,Met Office,2023-06-07,11 SERVICES,CHIEF FINANCIAL OFFICER,ADAM PHONES LTD,480436,88.35,538877093
BEIS,Met Office,2023-06-19,11 SERVICES,CHIEF FINANCIAL OFFICER,ALLSTAR BUSINESS SOLUTIONS LTD,480951,3132.75,747880191
BEIS,Met Office,2023-06-05,11 SERVICES,CHIEF FINANCIAL OFFICER,ALLSTAR BUSINESS SOLUTIONS LTD,480376,3514.68,747880191
BEIS,Met Office,2023-06-13,11 SERVICES,CHIEF FINANCIAL OFFICER,ANVIL MOBILE LIMITED,480695,152.92,981686175
BEIS,Met Office,2023-06-19,11 SERVICES,CHIEF FINANCIAL OFFICER,APPLE CENTRAL TAXIS,479672,-2105.8,449238720
BEIS,Met Office,2023-06-19,11 SERVICES,CHIEF FINANCIAL OFFICER,APPLE CENTRAL TAXIS,479794,2105.8,449238720
BEIS,Met Office,2023-06-19,11 SERVICES,CHIEF FINANCIAL OFFICER,APPLE CENTRAL TAXIS,480957,3111.5,449238720
BEIS,Met Office,2023-06-19,11 SERVICES,CHIEF FINANCIAL OFFICER,Ashfords Llp,480958,0,844502439
BEIS,Met Office,2023-06-19,11 SERVICES,CHIEF FINANCIAL OFFICER,Ashfords Llp,480958,1795,844502439
BEIS,Met Office,2023-06-30,11 SERVICES,CHIEF FINANCIAL OFFICER,Ashfords Llp,481278,3515,844502439
BEIS,Met Office,2023-06-23,11 SERVICES,CHIEF FINANCIAL OFFICER,BABBLE CLOUD LIMITED,480948,906.91,GB206270049
BEIS,Met Office,2023-06-13,13 MISCELLANEOUS,CHIEF FINANCIAL OFFICER,BANNER GROUP LIMITED,480743,1.08,GB391085740
BEIS,Met Office,2023-06-28,13 MISCELLANEOUS,CHIEF FINANCIAL OFFICER,BANNER GROUP LIMITED,481143,4.94,GB391085740
BEIS,Met Office,2023-06-28,13 MISCELLANEOUS,CHIEF FINANCIAL OFFICER,BANNER GROUP LIMITED,481132,9.47,GB391085740
BEIS,Met Office,2023-06-28,13 MISCELLANEOUS,CHIEF FINANCIAL OFFICER,BANNER GROUP LIMITED,481131,24.75,GB391085740
BEIS,Met Office,2023-06-28,04 CONTRACTORS,CHIEF FINANCIAL OFFICER,Beis,480292,29221.11,888825550
BEIS,Met Office,2023-06-13,06 ACCOMMODATION,CHIEF FINANCIAL OFFICER,Belfast International Airport Ltd,480693,4428.65,617777601
BEIS,Met Office,2023-06-02,06 ACCOMMODATION,CHIEF FINANCIAL OFFICER,BIDVEST NOONAN UK LTD,480334,70.61,GB847176988
BEIS,Met Office,2023-06-07,06 ACCOMMODATION,CHIEF FINANCIAL OFFICER,BIDVEST NOONAN UK LTD,480442,191.01,GB847176988
BEIS,Met Office,2023-06-20,06 ACCOMMODATION,CHIEF FINANCIAL OFFICER,BIDVEST NOONAN UK LTD,480974,238.14,GB847176988
BEIS,Met Office,2023-06-21,06 ACCOMMODATION,CHIEF FINANCIAL OFFICER,BIDVEST NOONAN UK LTD,481020,238.14,GB847176988
BEIS,Met Office,2023-06-26,06 ACCOMMODATION,CHIEF FINANCIAL OFFICER,BIDVEST NOONAN UK LTD,481037,501.58,GB847176988
BEIS,Met Office,2023-06-26,06 ACCOMMODATION,CHIEF FINANCIAL OFFICER,BIDVEST NOONAN UK LTD,481038,1111.97,GB847176988
BEIS,Met Office,2023-06-13,06 ACCOMMODATION,CHIEF FINANCIAL OFFICER,Biffa Waste Services Ltd,480749,61.93,537911627
BEIS,Met Office,2023-06-02,06 ACCOMMODATION,CHIEF FINANCIAL OFFICER,Biffa Waste Services Ltd,480259,80,537911627
BEIS,Met Office,2023-06-12,11 SERVICES,CHIEF FINANCIAL OFFICER,BITPOD LIMITED,480711,2238.3,124 9359 03
BEIS,Met Office,2023-06-28,11 SERVICES,CHIEF FINANCIAL OFFICER,BITPOD LIMITED,481174,13927.39,124 9359 03
BEIS,Met Office,2023-06-07,11 SERVICES,CHIEF FINANCIAL OFFICER,BT plc,480373,7617.2,245719348
BEIS,Met Office,2023-06-12,06 ACCOMMODATION,CHIEF FINANCIAL OFFICER,BUSINESS SUPPORT CENTRE LTD,480647,29.09,927365208
BEIS,Met Office,2023-06-08,06 ACCOMMODATION,CHIEF FINANCIAL OFFICER,BUSINESS SUPPORT CENTRE LTD,480591,1027.28,927365208
BEIS,Met Office,2023-06-21,10 EQUIPMENT MAINTENANCE,CHIEF FINANCIAL OFFICER,CABINET OFFICE - COF LEAD ACCOUNT,481023,3554,-
BEIS,Met Office,2023-06-05,06 ACCOMMODATION,CHIEF FINANCIAL OFFICER,CALOR GAS LIMITED,480374,230.37,207610984
BEIS,Met Office,2023-06-30,13 MISCELLANEOUS,CHIEF FINANCIAL OFFICER,CANON UK LTD,480969,-417.2,523797128
BEIS,Met Office,2023-06-09,13 MISCELLANEOUS,CHIEF FINANCIAL OFFICER,CANON UK LTD,480641,0.82,523797128
BEIS,Met Office,2023-06-09,13 MISCELLANEOUS,CHIEF FINANCIAL OFFICER,CANON UK LTD,480641,1,523797128
BEIS,Met Office,2023-06-09,13 MISCELLANEOUS,CHIEF FINANCIAL OFFICER,CANON UK LTD,480643,1,523797128
BEIS,Met Office,2023-06-09,13 MISCELLANEOUS,CHIEF FINANCIAL OFFICER,CANON UK LTD,480643,384.87,523797128
BEIS,Met Office,2023-06-30,13 MISCELLANEOUS,CHIEF FINANCIAL OFFICER,CANON UK LTD,478362,949.14,523797128
BEIS,Met Office,2023-06-19,11 SERVICES,CHIEF FINANCIAL OFFICER,CARBON CONTROL LIMITED,480956,9950,923 978678
BEIS,Met Office,2023-06-05,06 ACCOMMODATION,CHIEF FINANCIAL OFFICER,CARDIFF EXECUTIVE CENTRE LTD,480309,1.42,864497378
BEIS,Met Office,2023-06-05,06 ACCOMMODATION,CHIEF FINANCIAL OFFICER,CARDIFF EXECUTIVE CENTRE LTD,480364,2470,864497378
BEIS,Met Office,2023-06-23,06 ACCOMMODATION,CHIEF FINANCIAL OFFICER,CBRE MANAGED SERVICES LTD,481044,12194.88,853936883
BEIS,Met Office,2023-06-29,06 ACCOMMODATION,CHIEF FINANCIAL OFFICER,CBRE MANAGED SERVICES LTD,481041,14869.31,853936883
BEIS,Met Office,2023-06-08,06 ACCOMMODATION,CHIEF FINANCIAL OFFICER,CBRE MANAGED SERVICES LTD,480239,16906.13,853936883
BEIS,Met Office,2023-06-28,06 ACCOMMODATION,CHIEF FINANCIAL OFFICER,CBRE MANAGED SERVICES LTD,481138,21568.66,853936883
BEIS,Met Office,2023-06-28,06 ACCOMMODATION,CHIEF FINANCIAL OFFICER,CBRE MANAGED SERVICES LTD,481137,27661.84,853936883
BEIS,Met Office,2023-06-07,FIXTURE & FITTINGS,CHIEF FINANCIAL OFFICER,CBRE MANAGED SERVICES LTD,480238,29349.68,853936883
BEIS,Met Office,2023-06-26,06 ACCOMMODATION,CHIEF FINANCIAL OFFICER,CBRE MANAGED SERVICES LTD,481045,42992.93,853936883
BEIS,Met Office,2023-06-26,06 ACCOMMODATION,CHIEF FINANCIAL OFFICER,CBRE MANAGED SERVICES LTD,481043,50803.8,853936883
BEIS,Met Office,2023-06-26,06 ACCOMMODATION,CHIEF FINANCIAL OFFICER,CBRE MANAGED SERVICES LTD,481042,154281.85,853936883
BEIS,Met Office,2023-06-13,06 ACCOMMODATION,CHIEF FINANCIAL OFFICER,CELLNEX,480642,432,GB 843 8792 82
BEIS,Met Office,2023-06-13,06 ACCOMMODATION,CHIEF FINANCIAL OFFICER,CELLNEX,480642,520,GB 843 8792 82
BEIS,Met Office,2023-06-23,08 SOFTWARE LICENCES,CHIEF FINANCIAL OFFICER,CEMAR,481040,850,915042161
BEIS,Met Office,2023-06-29,11 SERVICES,CHIEF FINANCIAL OFFICER,CEMAR,481206,1400,915042161
BEIS,Met Office,2023-06-13,06 ACCOMMODATION,CHIEF FINANCIAL OFFICER,CLWYD-POWYS ARCHAEOLOGICAL TRUST,480798,2340,-
BEIS,Met Office,2023-06-21,11 SERVICES,CHIEF FINANCIAL OFFICER,COMMERCIAL TRANSFER LTD,481019,2430,891436990
BEIS,Met Office,2023-06-06,06 ACCOMMODATION,CHIEF FINANCIAL OFFICER,COUNCIL OF ISLES OF SCILLY,480275,1571.85,-
BEIS,Met Office,2023-06-08,06 ACCOMMODATION,CHIEF FINANCIAL OFFICER,D&G OFFICE SERVICES LTD,480372,388,272997547
BEIS,Met Office,2023-06-22,06 ACCOMMODATION,CHIEF FINANCIAL OFFICER,DEPARTMENT OF FINANCE AND PERSONNEL,481071,-12994.73,888808059
BEIS,Met Office,2023-06-15,06 ACCOMMODATION,CHIEF FINANCIAL OFFICER,Devon County Council,480580,10616,142208113
BEIS,Met Office,2023-06-13,06 ACCOMMODATION,CHIEF FINANCIAL OFFICER,DUNSTAFFNAGE ESTATE,480808,750,-
BEIS,Met Office,2023-06-02,13 MISCELLANEOUS,CHIEF FINANCIAL OFFICER,EAST ANGLIAN WATER COOLER CO,480343,76.9,676668178
BEIS,Met Office,2023-06-28,13 MISCELLANEOUS,CHIEF FINANCIAL OFFICER,EDEN SPRINGS UK LTD,481144,533.1,232160411
BEIS,Met Office,2023-06-06,13 MISCELLANEOUS,CHIEF FINANCIAL OFFICER,EDEN SPRINGS UK LTD,480234,548.67,232160411
BEIS,Met Office,2023-06-08,06 ACCOMMODATION,CHIEF FINANCIAL OFFICER,EDF ENERGY CUSTOMERS PLC,480244,-203000.16,523041202
BEIS,Met Office,2023-06-08,06 ACCOMMODATION,CHIEF FINANCIAL OFFICER,EDF ENERGY CUSTOMERS PLC,480242,-197877.54,523041202
BEIS,Met Office,2023-06-08,06 ACCOMMODATION,CHIEF FINANCIAL OFFICER,EDF ENERGY CUSTOMERS PLC,480222,-171894.83,523041202
BEIS,Met Office,2023-06-08,06 ACCOMMODATION,CHIEF FINANCIAL OFFICER,EDF ENERGY CUSTOMERS PLC,480226,-165136.88,523041202
BEIS,Met Office,2023-06-08,06 ACCOMMODATION,CHIEF FINANCIAL OFFICER,EDF ENERGY CUSTOMERS PLC,480227,-157501.29,523041202
BEIS,Met Office,2023-06-08,06 ACCOMMODATION,CHIEF FINANCIAL OFFICER,EDF ENERGY CUSTOMERS PLC,480225,-154661.23,523041202
BEIS,Met Office,2023-06-16,06 ACCOMMODATION,CHIEF FINANCIAL OFFICER,EDF ENERGY CUSTOMERS PLC,480863,11350.57,523041202
BEIS,Met Office,2023-06-29,06 ACCOMMODATION,CHIEF FINANCIAL OFFICER,EDF ENERGY CUSTOMERS PLC,481145,154661.23,523041202
BEIS,Met Office,2023-06-27,06 ACCOMMODATION,CHIEF FINANCIAL OFFICER,EDF ENERGY CUSTOMERS PLC,481146,154661.23,523041202
BEIS,Met Office,2023-06-08,06 ACCOMMODATION,CHIEF FINANCIAL OFFICER,EDF ENERGY CUSTOMERS PLC,480224,161874.27,523041202
BEIS,Met Office,2023-06-08,06 ACCOMMODATION,CHIEF FINANCIAL OFFICER,EDF ENERGY CUSTOMERS PLC,480223,168042.25,523041202
BEIS,Met Office,2023-06-08,06 ACCOMMODATION,CHIEF FINANCIAL OFFICER,EDF ENERGY CUSTOMERS PLC,480243,195696.25,523041202
BEIS,Met Office,2023-06-08,06 ACCOMMODATION,CHIEF FINANCIAL OFFICER,EDF ENERGY CUSTOMERS PLC,480245,200548.2,523041202
BEIS,Met Office,2023-06-08,06 ACCOMMODATION,CHIEF FINANCIAL OFFICER,EDF ENERGY CUSTOMERS PLC,480473,207957.59,523041202
BEIS,Met Office,2023-06-08,06 ACCOMMODATION,CHIEF FINANCIAL OFFICER,EDF ENERGY CUSTOMERS PLC,480471,218074.22,523041202
BEIS,Met Office,2023-06-08,06 ACCOMMODATION,CHIEF FINANCIAL OFFICER,EDF ENERGY CUSTOMERS PLC,480472,598199.76,523041202
BEIS,Met Office,2023-06-28,11 SERVICES,CHIEF FINANCIAL OFFICER,EIR,24947,57.74,4736919B
BEIS,Met Office,2023-06-28,03 STAFF COSTS T&S,CHIEF FINANCIAL OFFICER,ENTERPRISE RENT A CAR UK LTD,481184,60.4,215557314
BEIS,Met Office,2023-06-13,03 STAFF COSTS T&S,CHIEF FINANCIAL OFFICER,ENTERPRISE RENT A CAR UK LTD,480745,64.11,215557314
BEIS,Met Office,2023-06-02,03 STAFF COSTS T&S,CHIEF FINANCIAL OFFICER,ENTERPRISE RENT A CAR UK LTD,480302,114.64,215557314
BEIS,Met Office,2023-06-19,03 STAFF COSTS T&S,CHIEF FINANCIAL OFFICER,ENTERPRISE RENT A CAR UK LTD,480959,664.98,215557314
BEIS,Met Office,2023-06-13,03 STAFF COSTS T&S,CHIEF FINANCIAL OFFICER,ENTERPRISE RENT A CAR UK LTD,480746,1975.55,215557314
BEIS,Met Office,2023-06-19,03 STAFF COSTS T&S,CHIEF FINANCIAL OFFICER,ENTERPRISE RENT A CAR UK LTD,480965,2391.5,215557314
BEIS,Met Office,2023-06-07,03 STAFF COSTS T&S,CHIEF FINANCIAL OFFICER,ENTERPRISE RENT A CAR UK LTD,480445,2728.38,215557314
BEIS,Met Office,2023-06-26,03 STAFF COSTS T&S,CHIEF FINANCIAL OFFICER,ENTERPRISE RENT A CAR UK LTD,481134,3837.13,215557314
BEIS,Met Office,2023-06-26,06 ACCOMMODATION,CHIEF FINANCIAL OFFICER,Exeter City Council,479450,168960,142335594
BEIS,Met Office,2023-06-26,06 ACCOMMODATION,CHIEF FINANCIAL OFFICER,Exeter City Council,479456,168960,142335594
BEIS,Met Office,2023-06-16,11 SERVICES,CHIEF FINANCIAL OFFICER,EXPONENTIAL-E,480909,216.49,GB798572653
BEIS,Met Office,2023-06-12,11 SERVICES,CHIEF FINANCIAL OFFICER,EXPONENTIAL-E,480485,2281.82,GB798572653
BEIS,Met Office,2023-06-02,06 ACCOMMODATION,CHIEF FINANCIAL OFFICER,FMS INTERIOR SERVICES LTD,480260,1428,922056940
BEIS,Met Office,2023-06-12,11 SERVICES,CHIEF FINANCIAL OFFICER,GAMMA TELECOM LTD,480175,-132,823820344
BEIS,Met Office,2023-06-16,11 SERVICES,CHIEF FINANCIAL OFFICER,GAMMA TELECOM LTD,478592,27160.39,823820344
BEIS,Met Office,2023-06-12,11 SERVICES,CHIEF FINANCIAL OFFICER,GAMMA TELECOM LTD,479718,29962.79,823820344
BEIS,Met Office,2023-06-12,11 SERVICES,CHIEF FINANCIAL OFFICER,GAMMA TELECOM LTD,480712,30089.12,823820344
BEIS,Met Office,2023-06-21,11 SERVICES,CHIEF FINANCIAL OFFICER,GB GROUP PLC,480949,103.26,539716218
BEIS,Met Office,2023-06-12,11 SERVICES,CHIEF FINANCIAL OFFICER,GB GROUP PLC,480493,452.95,539716218
BEIS,Met Office,2023-06-13,11 SERVICES,CHIEF FINANCIAL OFFICER,GIBRALTAR NYNEX COMMUNICATIONS LTD,480748,660,NOVAT
BEIS,Met Office,2023-06-26,06 ACCOMMODATION,CHIEF FINANCIAL OFFICER,GRS BUILDING SERVICES SOUTH-WEST,481129,690,-
BEIS,Met Office,2023-06-26,06 ACCOMMODATION,CHIEF FINANCIAL OFFICER,GRS BUILDING SERVICES SOUTH-WEST,481130,12837.35,-
BEIS,Met Office,2023-06-16,06 ACCOMMODATION,CHIEF FINANCIAL OFFICER,GVAV LIMITED,480912,750,770015070
BEIS,Met Office,2023-06-15,11 SERVICES,CHIEF FINANCIAL OFFICER,INTEROUTE COMMUNICATIONS LIMITED,479815,7100,832 7071 39
BEIS,Met Office,2023-06-07,11 SERVICES,CHIEF FINANCIAL OFFICER,JERSEY TELECOM,480491,1293.72,NOTVATREG
BEIS,Met Office,2023-06-05,06 ACCOMMODATION,CHIEF FINANCIAL OFFICER,LAMBERT SMITH HAMPTON GROUP LTD CLIENT A/C,480363,111,NOVAT
BEIS,Met Office,2023-06-23,11 SERVICES,CHIEF FINANCIAL OFFICER,LICENCE BUREAU LTD,481053,156.8,820219467
BEIS,Met Office,2023-06-23,06 ACCOMMODATION,CHIEF FINANCIAL OFFICER,MAPP (PROPERTY MANAGEMENT) LTD,481033,4348.01,725900735
BEIS,Met Office,2023-06-27,SOFTWARE LICENCES,CHIEF FINANCIAL OFFICER,METRIKUS LIMITED,481167,774,321 8772 02
BEIS,Met Office,2023-06-05,06 ACCOMMODATION,CHIEF FINANCIAL OFFICER,Mitie Landscapes Ltd,480339,1,GB 416 706 654
BEIS,Met Office,2023-06-05,06 ACCOMMODATION,CHIEF FINANCIAL OFFICER,Mitie Landscapes Ltd,480340,1,GB 416 706 654
BEIS,Met Office,2023-06-05,06 ACCOMMODATION,CHIEF FINANCIAL OFFICER,Mitie Landscapes Ltd,480340,311.5,GB 416 706 654
BEIS,Met Office,2023-06-05,06 ACCOMMODATION,CHIEF FINANCIAL OFFICER,Mitie Landscapes Ltd,480339,6084.94,GB 416 706 654
BEIS,Met Office,2023-06-05,11 SERVICES,CHIEF FINANCIAL OFFICER,MITIE SECURITY LTD,480411,67.5,416706654
BEIS,Met Office,2023-06-05,06 ACCOMMODATION,CHIEF FINANCIAL OFFICER,MITIE SECURITY LTD,480413,115.74,416706654
BEIS,Met Office,2023-06-12,11 SERVICES,CHIEF FINANCIAL OFFICER,MITIE SECURITY LTD,480371,251.28,416706654
BEIS,Met Office,2023-06-05,11 SERVICES,CHIEF FINANCIAL OFFICER,MITIE SECURITY LTD,480412,1125,416706654
BEIS,Met Office,2023-06-05,11 SERVICES,CHIEF FINANCIAL OFFICER,MITIE SECURITY LTD,480410,1427.46,416706654
BEIS,Met Office,2023-06-28,11 SERVICES,CHIEF FINANCIAL OFFICER,MITIE SECURITY LTD,481136,3488,416706654
BEIS,Met Office,2023-06-28,11 SERVICES,CHIEF FINANCIAL OFFICER,MITIE SECURITY LTD,481136,8137.02,416706654
BEIS,Met Office,2023-06-28,11 SERVICES,CHIEF FINANCIAL OFFICER,MITIE SECURITY LTD,481135,23148.5,416706654
BEIS,Met Office,2023-06-29,06 ACCOMMODATION,CHIEF FINANCIAL OFFICER,MORAY COUNCIL,481255,-309.92,663755506
BEIS,Met Office,2023-06-29,06 ACCOMMODATION,CHIEF FINANCIAL OFFICER,MORAY COUNCIL,481173,445.51,663755506
BEIS,Met Office,2023-06-09,06 ACCOMMODATION,CHIEF FINANCIAL OFFICER,MOUNT CHARLES GROUP LTD,480652,496.27,517116274
BEIS,Met Office,2023-06-26,13 MISCELLANEOUS,CHIEF FINANCIAL OFFICER,NORSCOTT VENDING SERVICES LTD,481078,29.7,751402071
BEIS,Met Office,2023-06-02,13 MISCELLANEOUS,CHIEF FINANCIAL OFFICER,NORSCOTT VENDING SERVICES LTD,480342,54.65,751402071
BEIS,Met Office,2023-06-08,06 ACCOMMODATION,CHIEF FINANCIAL OFFICER,OCS Group UK Limited,480553,43455.01,GB238034379
BEIS,Met Office,2023-06-08,06 ACCOMMODATION,CHIEF FINANCIAL OFFICER,OCS Group UK Limited,480553,111439.88,GB238034379
BEIS,Met Office,2023-06-21,11 SERVICES,CHIEF FINANCIAL OFFICER,POSTURITE (UK) LTD,480952,16.74,583565114
BEIS,Met Office,2023-06-21,11 SERVICES,CHIEF FINANCIAL OFFICER,POSTURITE (UK) LTD,480446,50,583565114
BEIS,Met Office,2023-06-21,11 SERVICES,CHIEF FINANCIAL OFFICER,POSTURITE (UK) LTD,480409,121.53,583565114
BEIS,Met Office,2023-06-16,11 SERVICES,CHIEF FINANCIAL OFFICER,POSTURITE (UK) LTD,480865,415.01,583565114
BEIS,Met Office,2023-06-14,06 ACCOMMODATION,CHIEF FINANCIAL OFFICER,POWER NI ENERGY LTD,480812,117.4,617518142
BEIS,Met Office,2023-06-08,06 ACCOMMODATION,CHIEF FINANCIAL OFFICER,POWER NI ENERGY LTD,480437,699.85,617518142
BEIS,Met Office,2023-06-26,03 STAFF COSTS T&S,CHIEF FINANCIAL OFFICER,RAINBOW CITY TAXIS,481139,43.9,724295039
BEIS,Met Office,2023-06-21,06 ACCOMMODATION,CHIEF FINANCIAL OFFICER,REDACTED � PERSONAL DATA,480419,1080,-
BEIS,Met Office,2023-06-13,06 ACCOMMODATION,CHIEF FINANCIAL OFFICER,REDACTED � PERSONAL DATA,480754,4185.25,001874305
BEIS,Met Office,2023-06-08,06 ACCOMMODATION,CHIEF FINANCIAL OFFICER,RIVER RIDGE,480554,133.12,176286083
BEIS,Met Office,2023-06-13,06 ACCOMMODATION,CHIEF FINANCIAL OFFICER,SAFESTORE LTD,480742,3430.33,722887607
BEIS,Met Office,2023-06-20,06 ACCOMMODATION,CHIEF FINANCIAL OFFICER,Severn Trent Water Ltd,480972,230.31,486985565
BEIS,Met Office,2023-06-28,06 ACCOMMODATION,CHIEF FINANCIAL OFFICER,SHARED ACCESS LTD,481182,7759.29,920672730
BEIS,Met Office,2023-06-13,06 ACCOMMODATION,CHIEF FINANCIAL OFFICER,SHETLAND CLEANING SERVICES,480727,831.13,430028404
BEIS,Met Office,2023-06-09,06 ACCOMMODATION,CHIEF FINANCIAL OFFICER,Sse Generation Ltd,480650,160,553769603
BEIS,Met Office,2023-06-14,06 ACCOMMODATION,CHIEF FINANCIAL OFFICER,St. Modwen Properties Limited,478951,20.64,005489575
BEIS,Met Office,2023-06-23,06 ACCOMMODATION,CHIEF FINANCIAL OFFICER,St. Modwen Properties Limited,481036,45.69,005489575
BEIS,Met Office,2023-06-13,06 ACCOMMODATION,CHIEF FINANCIAL OFFICER,St. Modwen Properties Limited,480676,112.5,005489575
BEIS,Met Office,2023-06-29,06 ACCOMMODATION,CHIEF FINANCIAL OFFICER,St. Modwen Properties Limited,481253,391.21,005489575
BEIS,Met Office,2023-06-13,06 ACCOMMODATION,CHIEF FINANCIAL OFFICER,St. Modwen Properties Limited,480677,750,005489575
BEIS,Met Office,2023-06-13,11 SERVICES,CHIEF FINANCIAL OFFICER,SURE SOUTH ATLANTIC LTD,480734,770,-
BEIS,Met Office,2023-06-12,11 SERVICES,CHIEF FINANCIAL OFFICER,SURE SOUTH ATLANTIC LTD,480696,2124.59,NOVATREG
BEIS,Met Office,2023-06-13,11 SERVICES,CHIEF FINANCIAL OFFICER,SURE SOUTH ATLANTIC LTD,480733,4793,-
BEIS,Met Office,2023-06-28,11 SERVICES,CHIEF FINANCIAL OFFICER,SURE SOUTH ATLANTIC LTD (ST HELENA),481186,1413.5,30005
BEIS,Met Office,2023-06-28,11 SERVICES,CHIEF FINANCIAL OFFICER,SWISSCOM (SCHWEIZ) AG,480586,97.45,-
BEIS,Met Office,2023-06-26,11 SERVICES,CHIEF FINANCIAL OFFICER,TELEFONICA O2 UK LIMITED,481091,57.4,778603785
BEIS,Met Office,2023-06-12,11 SERVICES,CHIEF FINANCIAL OFFICER,TELEFONICA O2 UK LIMITED,480713,3707.92,778603785
BEIS,Met Office,2023-06-02,06 ACCOMMODATION,CHIEF FINANCIAL OFFICER,THE WOOLLY SHEPHERD,480293,26835,111326371
BEIS,Met Office,2023-06-05,06 ACCOMMODATION,CHIEF FINANCIAL OFFICER,TOP RANK CLEANING SERVICES LTD,480345,1110.56,-
BEIS,Met Office,2023-06-29,06 ACCOMMODATION,CHIEF FINANCIAL OFFICER,UK CENTRE FOR ECOLOGY & HYDROLOGY (UKCEH),481229,2772.65,336940192
BEIS,Met Office,2023-06-13,06 ACCOMMODATION,CHIEF FINANCIAL OFFICER,VICKERY HOLMAN,480794,4365.62,943875678
BEIS,Met Office,2023-06-13,11 SERVICES,CHIEF FINANCIAL OFFICER,Vodafone Limited,480726,472.34,569953277
BEIS,Met Office,2023-06-13,11 SERVICES,CHIEF FINANCIAL OFFICER,Vodafone Limited,480725,4104.54,569953277
BEIS,Met Office,2023-06-28,11 SERVICES,CHIEF FINANCIAL OFFICER,WEBEX COMMUNICATIONS UK LTD,481171,209.92,815974302
BEIS,Met Office,2023-06-14,06 ACCOMMODATION,CHIEF FINANCIAL OFFICER,WILTSHIRE COUNCIL,480815,5134.71,-
BEIS,Met Office,2023-06-28,11 SERVICES,CHIEF FINANCIAL OFFICER,WOMBLE BOND DICKINSON (UK) LLP,481207,6060,GB123393627
BEIS,Met Office,2023-06-28,11 SERVICES,CHIEF FINANCIAL OFFICER,WOMBLE BOND DICKINSON (UK) LLP,481219,7672,GB123393627
BEIS,Met Office,2023-06-28,11 SERVICES,CHIEF FINANCIAL OFFICER,WOMBLE BOND DICKINSON (UK) LLP,481218,14875,GB123393627
BEIS,Met Office,2023-06-12,11 SERVICES,CHIEF FINANCIAL OFFICER,WT CONSULTANCY (SW) LTD,480368,10800,223 4662 25
BEIS,Met Office,2023-06-14,11 SERVICES,MARKETS,ACCELERATION EMARKETING,480731,3769.58,848940776
BEIS,Met Office,2023-06-06,11 SERVICES,MARKETS,ADOPSTAR,480444,1250,115036848
BEIS,Met Office,2023-06-07,12 INTERNATIONAL,MARKETS,APPLIED SATELLITE TECHNOLOGY SYSTEMS LTD,480497,33.82,720108683
BEIS,Met Office,2023-06-13,11 SERVICES,MARKETS,BJSS LIMITED,480563,687.5,613295452
BEIS,Met Office,2023-06-23,11 SERVICES,MARKETS,BRYERS LLP,481029,107,609635917
BEIS,Met Office,2023-06-12,11 SERVICES,MARKETS,BRYERS LLP,480653,200,609635917
BEIS,Met Office,2023-06-21,11 SERVICES,MARKETS,BRYERS LLP,481022,285,609635917
BEIS,Met Office,2023-06-21,10 EQUIPMENT MAINTENANCE,MARKETS,CABINET OFFICE - COF LEAD ACCOUNT,481023,3554,-
BEIS,Met Office,2023-06-13,11 SERVICES,MARKETS,CULVERWELL ASSOCIATES LTD,480729,3000,386 6119 65
BEIS,Met Office,2023-06-14,11 SERVICES,MARKETS,"IBL SOFTWARE ENGINEERING, SPOL S.R.O.",480049,8176.38,SK2020241883
BEIS,Met Office,2023-06-14,11 SERVICES,MARKETS,"IBL SOFTWARE ENGINEERING, SPOL S.R.O.",480176,41271.24,SK2020241883
BEIS,Met Office,2023-06-14,11 SERVICES,MARKETS,INMARSAT SOLUTIONS (CANADA) INC,479305,1645.26,766144223
BEIS,Met Office,2023-06-14,11 SERVICES,MARKETS,INMARSAT SOLUTIONS (CANADA) INC,480377,1823.92,766144223
BEIS,Met Office,2023-06-07,11 SERVICES,MARKETS,"INTELLOVATIONS, LLC",11086,6054.62,-
BEIS,Met Office,2023-06-07,11 SERVICES,MARKETS,JCT Ltd,480192,4760,714 3761 44
BEIS,Met Office,2023-06-15,11 SERVICES,MARKETS,JULIAN MAYES WEATHER CONSULTANCY LTD,480797,3076,-
BEIS,Met Office,2023-06-14,11 SERVICES,MARKETS,LHR BUSINESS SUPPORT CENTRE LTD,480634,9.27,927365404
BEIS,Met Office,2023-06-14,11 SERVICES,MARKETS,LHR BUSINESS SUPPORT CENTRE LTD,480633,19.22,927365404
BEIS,Met Office,2023-06-14,11 SERVICES,MARKETS,LHR BUSINESS SUPPORT CENTRE LTD,480654,3484.58,927365404
BEIS,Met Office,2023-06-14,REVENUE,MARKETS,METEO-FRANCE AGENCE COMPTABLE SEC D2C,24752,32721.8,FR03180060030
BEIS,Met Office,2023-06-02,11 SERVICES,MARKETS,PLOUGHSHARE INNOVATIONS,480295,12000,878305296
BEIS,Met Office,2023-06-07,11 SERVICES,MARKETS,PLOUGHSHARE INNOVATIONS,480296,12000,878305296
BEIS,Met Office,2023-06-14,REVENUE,MARKETS,SCIENCE & TECHNOLOGY FACILITIES COUNCIL,24895,20742.31,287461957
BEIS,Met Office,2023-06-16,11 SERVICES,MARKETS,SOFTWIRE TECHNOLOGY LIMITED,480928,4410,752 1253 57
BEIS,Met Office,2023-06-16,11 SERVICES,MARKETS,SOFTWIRE TECHNOLOGY LIMITED,480932,14700,752 1253 57
BEIS,Met Office,2023-06-05,11 SERVICES,MARKETS,SOFTWIRE TECHNOLOGY LIMITED,480337,36540,752 1253 57
BEIS,Met Office,2023-06-07,11 SERVICES,MARKETS,SOUTH AFRICAN WEATHER SERVICES,480134,8036.47,-
BEIS,Met Office,2023-06-13,11 SERVICES,MARKETS,SPOKE (INTERACTIVE) LTD,480728,770,840156451
BEIS,Met Office,2023-06-22,11 SERVICES,MARKETS,SWANTECH LOGISTICS LTD,480967,1620,769332401
BEIS,Met Office,2023-06-22,11 SERVICES,MARKETS,SWANTECH LOGISTICS LTD,480966,3240,769332401
BEIS,Met Office,2023-06-14,11 SERVICES,MARKETS,Trinity House,477432,480,243120414
BEIS,Met Office,2023-06-14,11 SERVICES,MARKETS,Trinity House,477430,600,243120414
BEIS,Met Office,2023-06-26,11 SERVICES,MARKETS,UK SBS,481110,540574.55,618367325
BEIS,Met Office,2023-06-23,11 SERVICES,MARKETS,ULTRA ELECTRONICS LTD NUCLEAR CONTROL SYSTEMS,481047,23170.88,123340754
BEIS,Met Office,2023-06-06,11 SERVICES,MARKETS,UNITED KINGDOM RESEARCH AND INNOVATION (UKRI),480381,1201.4,GB287461957
BEIS,Met Office,2023-06-06,11 SERVICES,MARKETS,UNITED KINGDOM RESEARCH AND INNOVATION (UKRI),480382,1201.4,GB287461957
BEIS,Met Office,2023-06-06,11 SERVICES,MARKETS,UNITED KINGDOM RESEARCH AND INNOVATION (UKRI),480383,1201.4,GB287461957
BEIS,Met Office,2023-06-13,13 MISCELLANEOUS,MARKETS,University Of Bristol,480709,3287.42,991261800
BEIS,Met Office,2023-06-12,11 SERVICES,MARKETS,WALNUT UNLIMITED LIMITED,480644,7715,648857968
BEIS,Met Office,2023-06-12,11 SERVICES,MARKETS,WORLDPAY (UK) LTD,480617,249.33,991280207
BEIS,Met Office,2023-06-06,11 SERVICES,MARKETS,WORLDPAY LTD,480379,68.35,991280207
BEIS,Met Office,2023-06-14,13 MISCELLANEOUS,OFFICE OF THE CEO,DEVON & CORNWALL BUSINESS COUNCIL,480347,600,768969833
BEIS,Met Office,2023-06-12,11 SERVICES,OFFICE OF THE CEO,PDP COMPANIES,480685,1995,GB991242805
BEIS,Met Office,2023-06-15,CYCLESCHEME,OTHER,EDENRED EB (SHOPPING VOUCHERS),480906,154.32,649 503 520
BEIS,Met Office,2023-06-09,CYCLESCHEME,OTHER,EDENRED UK (CYCLESCHEME),480651,2192.32,649 503 520
BEIS,Met Office,2023-06-06,CYCLESCHEME,OTHER,EDENRED UK (CYCLESCHEME),478366,9102.65,649 503 520
BEIS,Met Office,2023-06-20,TRADE CREDITORS,OTHER,NATWEST COMMERCIAL CARDS DIVISION,480992,184361.56,N/A
BEIS,Met Office,2023-06-06,11 SERVICES,PEOPLE,ACTIVE LEARNING TEAM LTD,480464,-1574.95,-
BEIS,Met Office,2023-06-12,11 SERVICES,PEOPLE,ACTIVE LEARNING TEAM LTD,480560,400,-
BEIS,Met Office,2023-06-06,11 SERVICES,PEOPLE,ACTIVE LEARNING TEAM LTD,480465,1574.95,-
BEIS,Met Office,2023-06-06,11 SERVICES,PEOPLE,ACTIVE LEARNING TEAM LTD,480168,2800,-
BEIS,Met Office,2023-06-20,11 SERVICES,PEOPLE,ACTIVE LEARNING TEAM LTD,480953,3113.19,-
BEIS,Met Office,2023-06-26,11 SERVICES,PEOPLE,ADJUST,481133,995,-
BEIS,Met Office,2023-06-21,11 SERVICES,PEOPLE,AIMEXE LTD,481001,337.5,-
BEIS,Met Office,2023-06-07,13 MISCELLANEOUS,PEOPLE,BROADBEAN TECHNOLOGY LTD,480435,1183.05,GB184088778
BEIS,Met Office,2023-06-05,08 SOFTWARE LICENCES,PEOPLE,CATALYST IT,480370,2270.82,978169262
BEIS,Met Office,2023-06-20,11 SERVICES,PEOPLE,CHARTERED INSTITUTE OF PUBLIC RELATIONS (CIPR,480973,7500,234 2948 59
BEIS,Met Office,2023-06-28,13 MISCELLANEOUS,PEOPLE,Cipd,481084,5411,756 202 737.
BEIS,Met Office,2023-06-08,11 SERVICES,PEOPLE,CIPHR,480490,8750,242661124
BEIS,Met Office,2023-06-08,08 SOFTWARE LICENCES,PEOPLE,CIPHR,480490,51527.5,242661124
BEIS,Met Office,2023-06-13,11 SERVICES,PEOPLE,CIVICA UK LIMITED,480732,2998,391171065
BEIS,Met Office,2023-06-08,11 SERVICES,PEOPLE,CIVICA UK LIMITED,480494,7503.5,391171065
BEIS,Met Office,2023-06-28,13 MISCELLANEOUS,PEOPLE,EDENRED - CHILDCARE VOUCHERS,481225,9840.5,649 503 520
BEIS,Met Office,2023-06-08,13 MISCELLANEOUS,PEOPLE,EDENRED I&M (IRS VOUCHERS),480534,47960.4,649 503 520
BEIS,Met Office,2023-06-06,11 SERVICES,PEOPLE,FORGING PEOPLE LTD,480420,497,-
BEIS,Met Office,2023-06-27,11 SERVICES,PEOPLE,FRANCIS CLARK LLP,481092,2900,855910212
BEIS,Met Office,2023-06-07,11 SERVICES,PEOPLE,HEALTH ASSURED LIMITED,480440,1120,927 5242 17
BEIS,Met Office,2023-06-26,04 CONTRACTORS,PEOPLE,MATRIX SCM LIMITED,481054,177995.63,249 5734 68
BEIS,Met Office,2023-06-15,04 CONTRACTORS,PEOPLE,MATRIX SCM LIMITED,480915,186695.48,249 5734 68
BEIS,Met Office,2023-06-09,04 CONTRACTORS,PEOPLE,MATRIX SCM LIMITED,480632,195214.13,249 5734 68
BEIS,Met Office,2023-06-02,04 CONTRACTORS,PEOPLE,MATRIX SCM LIMITED,480335,252554.53,249 5734 68
BEIS,Met Office,2023-06-14,11 SERVICES,PEOPLE,MERCER LIMITED,480001,15500,GB 244 2517 79
BEIS,Met Office,2023-06-26,11 SERVICES,PEOPLE,MOMENTUM INCORPORATED,481050,6660,598958541
BEIS,Met Office,2023-06-14,11 SERVICES,PEOPLE,MOUNT CHARLES GROUP LTD,464094,-20480,517116274
BEIS,Met Office,2023-06-14,11 SERVICES,PEOPLE,MOUNT CHARLES GROUP LTD,421093,20480,517116274
BEIS,Met Office,2023-06-02,11 SERVICES,PEOPLE,PARTNERS FOR LEADERSHIP,479601,5250,402266435
BEIS,Met Office,2023-06-09,11 SERVICES,PEOPLE,REDACTED � PERSONAL DATA,480584,825,143043312
BEIS,Met Office,2023-06-09,11 SERVICES,PEOPLE,REDACTED � PERSONAL DATA,480585,1407,143043312
BEIS,Met Office,2023-06-12,11 SERVICES,PEOPLE,REDACTED � PERSONAL DATA,480583,6960.73,143043312
BEIS,Met Office,2023-06-12,11 SERVICES,PEOPLE,RESTORE RECORDS MANAGEMENT,480649,13.18,843 863011
BEIS,Met Office,2023-06-13,11 SERVICES,PEOPLE,SKILLTEC LIMITED,477936,345,909833105
BEIS,Met Office,2023-06-06,11 SERVICES,PEOPLE,SKILLTEC LIMITED,480346,8350,909833105
BEIS,Met Office,2023-06-19,11 SERVICES,PEOPLE,SWANTECH LOGISTICS LTD,478344,900,769332401
BEIS,Met Office,2023-06-22,11 SERVICES,PEOPLE,SWANTECH LOGISTICS LTD,480968,900,769332401
BEIS,Met Office,2023-06-05,11 SERVICES,PEOPLE,THE ACTEON CONSULTANCY LLP,480311,44760,599460874
BEIS,Met Office,2023-06-02,11 SERVICES,PEOPLE,THE STRENGTHS PEOPLE LTD,480151,2248.8,206868488
BEIS,Met Office,2023-06-15,11 SERVICES,PEOPLE,THE STRENGTHS PEOPLE LTD,480914,2530,206868488
BEIS,Met Office,2023-06-06,08 SOFTWARE LICENCES,PEOPLE,THRIVE CSR LIMITED,480432,12800,-
BEIS,Met Office,2023-06-07,11 SERVICES,PEOPLE,TP HEALTH LTD,480481,1001,883064608
BEIS,Met Office,2023-06-26,11 SERVICES,PEOPLE,TP HEALTH LTD,481080,1755,883064608
BEIS,Met Office,2023-06-07,11 SERVICES,PEOPLE,WARWICK CORPORATE EVENTS,480487,606.95,472250169
BEIS,Met Office,2023-06-08,11 SERVICES,PEOPLE,WELL IMAGE CIC,480646,300,-
BEIS,Met Office,2023-06-08,13 MISCELLANEOUS,PEOPLE,YOTI LTD,480559,27.9,GB199947617
BEIS,Met Office,2023-06-13,11 SERVICES,PEOPLE,YOUGOV PLC,480744,4530,991228109
BEIS,Met Office,2023-06-15,11 SERVICES,PROGRAMMES,BAE SYSTEMS APPLIED INTELLIGENCE LIMITED,480801,-10,GB641407169
BEIS,Met Office,2023-06-15,11 SERVICES,PROGRAMMES,BAE SYSTEMS APPLIED INTELLIGENCE LIMITED,480803,1,GB641407169
BEIS,Met Office,2023-06-15,11 SERVICES,PROGRAMMES,BAE SYSTEMS APPLIED INTELLIGENCE LIMITED,480907,41,GB641407169
BEIS,Met Office,2023-06-15,11 SERVICES,PROGRAMMES,BAE SYSTEMS APPLIED INTELLIGENCE LIMITED,480907,47.38,GB641407169
BEIS,Met Office,2023-06-15,11 SERVICES,PROGRAMMES,BAE SYSTEMS APPLIED INTELLIGENCE LIMITED,480907,386.26,GB641407169
BEIS,Met Office,2023-06-15,11 SERVICES,PROGRAMMES,BAE SYSTEMS APPLIED INTELLIGENCE LIMITED,480907,900.54,GB641407169
BEIS,Met Office,2023-06-15,11 SERVICES,PROGRAMMES,BAE SYSTEMS APPLIED INTELLIGENCE LIMITED,480801,6243.75,GB641407169
BEIS,Met Office,2023-06-15,11 SERVICES,PROGRAMMES,BAE SYSTEMS APPLIED INTELLIGENCE LIMITED,480801,13132,GB641407169
BEIS,Met Office,2023-06-15,11 SERVICES,PROGRAMMES,BAE SYSTEMS APPLIED INTELLIGENCE LIMITED,480801,15946,GB641407169
BEIS,Met Office,2023-06-15,11 SERVICES,PROGRAMMES,BAE SYSTEMS APPLIED INTELLIGENCE LIMITED,480801,16649.5,GB641407169
BEIS,Met Office,2023-06-15,11 SERVICES,PROGRAMMES,BAE SYSTEMS APPLIED INTELLIGENCE LIMITED,480801,16884,GB641407169
BEIS,Met Office,2023-06-15,11 SERVICES,PROGRAMMES,BAE SYSTEMS APPLIED INTELLIGENCE LIMITED,480801,16884,GB641407169
BEIS,Met Office,2023-06-15,11 SERVICES,PROGRAMMES,BAE SYSTEMS APPLIED INTELLIGENCE LIMITED,480801,16884,GB641407169
BEIS,Met Office,2023-06-15,11 SERVICES,PROGRAMMES,BAE SYSTEMS APPLIED INTELLIGENCE LIMITED,480801,16884,GB641407169
BEIS,Met Office,2023-06-15,11 SERVICES,PROGRAMMES,BAE SYSTEMS APPLIED INTELLIGENCE LIMITED,480801,17445,GB641407169
BEIS,Met Office,2023-06-15,11 SERVICES,PROGRAMMES,BAE SYSTEMS APPLIED INTELLIGENCE LIMITED,480801,18982.02,GB641407169
BEIS,Met Office,2023-06-15,11 SERVICES,PROGRAMMES,BAE SYSTEMS APPLIED INTELLIGENCE LIMITED,480801,19771,GB641407169
BEIS,Met Office,2023-06-15,11 SERVICES,PROGRAMMES,BAE SYSTEMS APPLIED INTELLIGENCE LIMITED,480803,20855,GB641407169
BEIS,Met Office,2023-06-15,11 SERVICES,PROGRAMMES,BAE SYSTEMS APPLIED INTELLIGENCE LIMITED,480800,20934,GB641407169
BEIS,Met Office,2023-06-15,11 SERVICES,PROGRAMMES,BAE SYSTEMS APPLIED INTELLIGENCE LIMITED,480801,20934,GB641407169
BEIS,Met Office,2023-06-15,11 SERVICES,PROGRAMMES,BAE SYSTEMS APPLIED INTELLIGENCE LIMITED,480801,24622.46,GB641407169
BEIS,Met Office,2023-06-07,11 SERVICES,PROGRAMMES,BJSS LIMITED,480562,23750,613295452
BEIS,Met Office,2023-06-09,11 SERVICES,PROGRAMMES,BJSS LIMITED,480567,34900,613295452
BEIS,Met Office,2023-06-12,11 SERVICES,PROGRAMMES,BJSS LIMITED,480568,47475,613295452
BEIS,Met Office,2023-06-07,11 SERVICES,PROGRAMMES,BJSS LIMITED,480579,83443.75,613295452
BEIS,Met Office,2023-06-13,11 SERVICES,PROGRAMMES,BJSS LIMITED,480566,83537.5,613295452
BEIS,Met Office,2023-06-14,11 SERVICES,PROGRAMMES,Cgi It Uk Limited,480636,30287,232615194
BEIS,Met Office,2023-06-13,11 SERVICES,PROGRAMMES,Cgi It Uk Limited,480637,38642,232615194
BEIS,Met Office,2023-06-13,11 SERVICES,PROGRAMMES,Cgi It Uk Limited,480638,70046,232615194
BEIS,Met Office,2023-06-02,11 SERVICES,PROGRAMMES,Esri (Uk) Ltd,479325,4282.67,787430791
BEIS,Met Office,2023-06-06,11 SERVICES,PROGRAMMES,Esri (Uk) Ltd,480350,8549.5,787430791
BEIS,Met Office,2023-06-02,11 SERVICES,PROGRAMMES,Esri (Uk) Ltd,480351,10059.73,787430791
BEIS,Met Office,2023-06-20,11 SERVICES,PROGRAMMES,HOGAN LOVELLS INTERNATIONAL LLP,479441,-14049.89,GB123371543
BEIS,Met Office,2023-06-20,11 SERVICES,PROGRAMMES,HOGAN LOVELLS INTERNATIONAL LLP,479442,13911.12,GB123371543
BEIS,Met Office,2023-06-20,11 SERVICES,PROGRAMMES,HOGAN LOVELLS INTERNATIONAL LLP,480558,18440.23,GB123371543
BEIS,Met Office,2023-06-22,11 SERVICES,PROGRAMMES,JT DEV HOLDINGS LTD,478175,10000,-
BEIS,Met Office,2023-06-14,11 SERVICES,PROGRAMMES,"K F LEWIN CONSULTING, LLC",11075,6751.55,-
BEIS,Met Office,2023-06-02,11 SERVICES,PROGRAMMES,LAFOSSE ASSOCIATES,480128,6750,GB 360026537
BEIS,Met Office,2023-06-02,11 SERVICES,PROGRAMMES,LAFOSSE ASSOCIATES,480128,10500,GB 360026537
BEIS,Met Office,2023-06-20,11 SERVICES,PROGRAMMES,LAFOSSE ASSOCIATES,480938,12132.6,GB 360026537
BEIS,Met Office,2023-06-27,11 SERVICES,PROGRAMMES,MERCURE ROUGEMONT HOTEL,481065,5800,GB 291 795 359
BEIS,Met Office,2023-06-02,13 MISCELLANEOUS,PROGRAMMES,NORSCOTT VENDING SERVICES LTD,480352,85,751402071
BEIS,Met Office,2023-06-07,11 SERVICES,PROGRAMMES,REDACTED � PERSONAL DATA,24926,20740.63,112591322
BEIS,Met Office,2023-06-29,03 STAFF COSTS T&S,PROGRAMMES,RESURGENCE URBAN RESILIENCE TRUST,481221,-116,259524184
BEIS,Met Office,2023-06-21,03 STAFF COSTS T&S,PROGRAMMES,RESURGENCE URBAN RESILIENCE TRUST,481021,424.6,259524184
BEIS,Met Office,2023-06-29,03 STAFF COSTS T&S,PROGRAMMES,RESURGENCE URBAN RESILIENCE TRUST,479591,5517.64,259524184
BEIS,Met Office,2023-06-13,11 SERVICES,PROGRAMMES,ROWE IT LTD,480730,2018.75,924964394
BEIS,Met Office,2023-06-12,11 SERVICES,PROGRAMMES,ROWE IT LTD,480555,7193.95,924964394
BEIS,Met Office,2023-06-07,11 SERVICES,PROGRAMMES,ROWE IT LTD,480486,16094,924964394
BEIS,Met Office,2023-06-12,11 SERVICES,PROGRAMMES,ROWE IT LTD,480555,25178.82,924964394
BEIS,Met Office,2023-06-12,11 SERVICES,PROGRAMMES,ROWE IT LTD,480555,44962.19,924964394
BEIS,Met Office,2023-06-12,11 SERVICES,PROGRAMMES,ROWE IT LTD,480555,44962.19,924964394
BEIS,Met Office,2023-06-12,11 SERVICES,PROGRAMMES,ROWE IT LTD,480555,57551.6,924964394
BEIS,Met Office,2023-06-07,11 SERVICES,PROGRAMMES,ROWE IT LTD,480564,100143.75,924964394
BEIS,Met Office,2023-06-28,11 SERVICES,PROGRAMMES,UNIVERSITATBERN,480016,1708.31,280255
BEIS,Met Office,2023-06-28,11 SERVICES,PROGRAMMES,UNIVERSITATBERN,480016,60000,280255
BEIS,Met Office,2023-06-20,11 SERVICES,PROGRAMMES,University Of Birmingham,479744,64782,729856187
BEIS,Met Office,2023-06-20,11 SERVICES,PROGRAMMES,University Of Birmingham,479745,64782,729856187
BEIS,Met Office,2023-06-27,11 SERVICES,PROGRAMMES,University of Edinburgh,479867,-852.67,592950700
BEIS,Met Office,2023-06-27,11 SERVICES,PROGRAMMES,University of Edinburgh,481105,22000,592950700
BEIS,Met Office,2023-06-08,11 SERVICES,PROGRAMMES,University Of Exeter,472498,14893.88,142047795
BEIS,Met Office,2023-06-07,13 MISCELLANEOUS,SCIENCE,AB MULTIMEDIA LTD,478954,550,849333502
BEIS,Met Office,2023-06-19,11 SERVICES,SCIENCE,ESCOTT HUNT LTD,480565,237.5,815727127
BEIS,Met Office,2023-06-13,11 SERVICES,SCIENCE,Esri (Uk) Ltd,480349,6153.87,787430791
BEIS,Met Office,2023-06-21,11 SERVICES,SCIENCE,NIWA,476150,142000,GST059456466
BEIS,Met Office,2023-06-28,11 SERVICES,SCIENCE,PARTNERS FOR LEADERSHIP,481170,-9450,402266435
BEIS,Met Office,2023-06-28,11 SERVICES,SCIENCE,PARTNERS FOR LEADERSHIP,481169,1575,402266435
BEIS,Met Office,2023-06-28,11 SERVICES,SCIENCE,PARTNERS FOR LEADERSHIP,479602,9450,402266435
BEIS,Met Office,2023-06-02,11 SERVICES,SCIENCE,Plymouth Marine Laboratory,479663,17202.75,927105830
BEIS,Met Office,2023-06-02,11 SERVICES,SCIENCE,SCIENCE & TECHNOLOGY FACILITIES COUNCIL,478111,225000,287461957
BEIS,Met Office,2023-06-02,13 MISCELLANEOUS,SCIENCE,University College London,478891,2000,524371168
BEIS,Met Office,2023-06-27,13 MISCELLANEOUS,SCIENCE,University of Edinburgh,480119,-1750,592950700
BEIS,Met Office,2023-06-27,13 MISCELLANEOUS,SCIENCE,University of Edinburgh,477944,1750,592950700
BEIS,Met Office,2023-06-08,11 SERVICES,SCIENCE,University Of Exeter,480573,80000,142047795
BEIS,Met Office,2023-06-12,13 MISCELLANEOUS,SCIENCE,University Of Leeds,480333,-1000,613451470
BEIS,Met Office,2023-06-12,13 MISCELLANEOUS,SCIENCE,University Of Leeds,479091,1000,613451470
BEIS,Met Office,2023-06-12,11 SERVICES,SCIENCE,University Of Leeds,480655,4378.31,613451470
BEIS,Met Office,2023-06-13,11 SERVICES,SERVICES,ADAM PHONES LTD,480737,79.8,538877093
BEIS,Met Office,2023-06-13,11 SERVICES,SERVICES,ADAM PHONES LTD,480735,85.5,538877093
BEIS,Met Office,2023-06-13,11 SERVICES,SERVICES,ADAM PHONES LTD,480736,88.35,538877093
BEIS,Met Office,2023-06-12,04 CONTRACTORS,SERVICES,AFBI,480718,50,252677738
BEIS,Met Office,2023-06-08,03 STAFF COSTS T&S,SERVICES,AIRPORT CAR RENTALS LTD,480648,320,-
BEIS,Met Office,2023-06-07,11 SERVICES,SERVICES,APPLIED SATELLITE TECHNOLOGY SYSTEMS LTD,480501,33.82,720108683
BEIS,Met Office,2023-06-05,11 SERVICES,SERVICES,APPLIED SATELLITE TECHNOLOGY SYSTEMS LTD,478608,34.64,720108683
BEIS,Met Office,2023-06-02,11 SERVICES,SERVICES,APPLIED SATELLITE TECHNOLOGY SYSTEMS LTD,479995,36.52,720108683
BEIS,Met Office,2023-06-09,11 SERVICES,SERVICES,APPLIED SATELLITE TECHNOLOGY SYSTEMS LTD,479993,40.67,720108683
BEIS,Met Office,2023-06-07,11 SERVICES,SERVICES,APPLIED SATELLITE TECHNOLOGY SYSTEMS LTD,480498,67.65,720108683
BEIS,Met Office,2023-06-07,11 SERVICES,SERVICES,APPLIED SATELLITE TECHNOLOGY SYSTEMS LTD,480503,101.74,720108683
BEIS,Met Office,2023-06-09,11 SERVICES,SERVICES,APPLIED SATELLITE TECHNOLOGY SYSTEMS LTD,480505,140.23,720108683
BEIS,Met Office,2023-06-07,11 SERVICES,SERVICES,APPLIED SATELLITE TECHNOLOGY SYSTEMS LTD,480506,142.19,720108683
BEIS,Met Office,2023-06-09,11 SERVICES,SERVICES,APPLIED SATELLITE TECHNOLOGY SYSTEMS LTD,479998,185.35,720108683
BEIS,Met Office,2023-06-07,11 SERVICES,SERVICES,APPLIED SATELLITE TECHNOLOGY SYSTEMS LTD,480504,647.04,720108683
BEIS,Met Office,2023-06-09,11 SERVICES,SERVICES,APPLIED SATELLITE TECHNOLOGY SYSTEMS LTD,480502,673.14,720108683
BEIS,Met Office,2023-06-02,11 SERVICES,SERVICES,APPLIED SATELLITE TECHNOLOGY SYSTEMS LTD,479994,679.45,720108683
BEIS,Met Office,2023-06-02,11 SERVICES,SERVICES,APPLIED SATELLITE TECHNOLOGY SYSTEMS LTD,479997,1676.72,720108683
BEIS,Met Office,2023-06-09,11 SERVICES,SERVICES,APPLIED SATELLITE TECHNOLOGY SYSTEMS LTD,480500,2799.89,720108683
BEIS,Met Office,2023-06-09,11 SERVICES,SERVICES,APPLIED SATELLITE TECHNOLOGY SYSTEMS LTD,480499,6844.3,720108683
BEIS,Met Office,2023-06-28,03 STAFF COSTS T&S,SERVICES,AVIS BUDGET PAYLESS,24920,462.78,-
BEIS,Met Office,2023-06-28,03 STAFF COSTS T&S,SERVICES,AVIS BUDGET PAYLESS,24921,490.92,-
BEIS,Met Office,2023-06-28,03 STAFF COSTS T&S,SERVICES,AVIS BUDGET PAYLESS,24922,925.55,-
BEIS,Met Office,2023-06-27,STOCK,SERVICES,Biffa Waste Services Ltd,481018,388.84,537911627
BEIS,Met Office,2023-06-08,11 SERVICES,SERVICES,Boc Ltd,480593,-125.65,226556555
BEIS,Met Office,2023-06-08,11 SERVICES,SERVICES,Boc Ltd,480354,17133.27,226556555
BEIS,Met Office,2023-06-21,10 EQUIPMENT MAINTENANCE,SERVICES,CABINET OFFICE - COF LEAD ACCOUNT,481023,22785,-
BEIS,Met Office,2023-06-30,11 SERVICES,SERVICES,Campbell Scientific Ltd,481172,60,428453933
BEIS,Met Office,2023-06-30,10 EQUIPMENT MAINTENANCE,SERVICES,Campbell Scientific Ltd,481172,674.1,428453933
BEIS,Met Office,2023-06-30,10 EQUIPMENT MAINTENANCE,SERVICES,Campbell Scientific Ltd,481172,708.1,428453933
BEIS,Met Office,2023-06-30,10 EQUIPMENT MAINTENANCE,SERVICES,Campbell Scientific Ltd,481172,708.1,428453933
BEIS,Met Office,2023-06-30,10 EQUIPMENT MAINTENANCE,SERVICES,Campbell Scientific Ltd,481172,708.1,428453933
BEIS,Met Office,2023-06-30,10 EQUIPMENT MAINTENANCE,SERVICES,Campbell Scientific Ltd,481172,708.1,428453933
BEIS,Met Office,2023-06-30,10 EQUIPMENT MAINTENANCE,SERVICES,Campbell Scientific Ltd,481172,708.1,428453933
BEIS,Met Office,2023-06-30,10 EQUIPMENT MAINTENANCE,SERVICES,Campbell Scientific Ltd,481172,822.4,428453933
BEIS,Met Office,2023-06-30,10 EQUIPMENT MAINTENANCE,SERVICES,Campbell Scientific Ltd,481172,822.4,428453933
BEIS,Met Office,2023-06-22,03 STAFF COSTS T&S,SERVICES,CHARLIE'S TRAVEL LTD,481035,52.5,783848277
BEIS,Met Office,2023-06-02,03 STAFF COSTS T&S,SERVICES,CHARLIE'S TRAVEL LTD,480336,240.96,783848277
BEIS,Met Office,2023-06-02,03 STAFF COSTS T&S,SERVICES,CHARLIE'S TRAVEL LTD,480308,484.55,783848277
BEIS,Met Office,2023-06-05,08 SOFTWARE LICENCES,SERVICES,CIVICA UK LIMITED,480310,11381.25,391171065
BEIS,Met Office,2023-06-08,11 SERVICES,SERVICES,CLOUDREACH EUROPE LIMITED,480590,7300,978187168
BEIS,Met Office,2023-06-07,11 SERVICES,SERVICES,COLLECTE LOCALISATION SATELLITES (C.L.S.),24889,180.68,FR95338034390
BEIS,Met Office,2023-06-07,11 SERVICES,SERVICES,COLLECTE LOCALISATION SATELLITES (C.L.S.),24891,187.95,FR95338034390
BEIS,Met Office,2023-06-07,11 SERVICES,SERVICES,COLLECTE LOCALISATION SATELLITES (C.L.S.),24890,4676.11,FR95338034390
BEIS,Met Office,2023-06-07,11 SERVICES,SERVICES,COLLECTE LOCALISATION SATELLITES (C.L.S.),24892,12212.92,FR95338034390
BEIS,Met Office,2023-06-26,07 EQUIPMENT,SERVICES,CPC BATTERY SERVICES LTD,481085,11025.6,223766167
BEIS,Met Office,2023-06-06,STOCK,SERVICES,Environmental Measurements Ltd,480348,0,348513154
BEIS,Met Office,2023-06-06,11 SERVICES,SERVICES,Environmental Measurements Ltd,480348,50,348513154
BEIS,Met Office,2023-06-06,TRADE CREDITORS,SERVICES,Environmental Measurements Ltd,480348,4248,348513154
BEIS,Met Office,2023-06-19,11 SERVICES,SERVICES,ESCOTT HUNT LTD,480565,237.5,815727127
BEIS,Met Office,2023-06-19,11 SERVICES,SERVICES,ESCOTT HUNT LTD,480565,237.5,815727127
BEIS,Met Office,2023-06-19,11 SERVICES,SERVICES,ESCOTT HUNT LTD,480565,237.5,815727127
BEIS,Met Office,2023-06-21,03 STAFF COSTS T&S,SERVICES,FALKLAND ISLAND COMPANY LTD,481030,700,N/A
BEIS,Met Office,2023-06-21,03 STAFF COSTS T&S,SERVICES,FALKLAND ISLAND COMPANY LTD,481031,700,N/A
BEIS,Met Office,2023-06-21,03 STAFF COSTS T&S,SERVICES,FALKLAND ISLAND COMPANY LTD,481032,700,N/A
BEIS,Met Office,2023-06-28,STOCK,SERVICES,FEINGERATEBAU K. FISCHER GMBH,24911,0,DE141292589
BEIS,Met Office,2023-06-28,STOCK,SERVICES,FEINGERATEBAU K. FISCHER GMBH,24911,0,DE141292589
BEIS,Met Office,2023-06-28,11 SERVICES,SERVICES,FEINGERATEBAU K. FISCHER GMBH,24911,265.19,DE141292589
BEIS,Met Office,2023-06-28,TRADE CREDITORS,SERVICES,FEINGERATEBAU K. FISCHER GMBH,24911,500.81,DE141292589
BEIS,Met Office,2023-06-28,TRADE CREDITORS,SERVICES,FEINGERATEBAU K. FISCHER GMBH,24911,7129.57,DE141292589
BEIS,Met Office,2023-06-14,11 SERVICES,SERVICES,GAMMA TELECOM LTD,480714,5504.15,823820344
BEIS,Met Office,2023-06-20,07 EQUIPMENT,SERVICES,GNSS SOLUTIONS (UK) LTD,480747,1889,119340823
BEIS,Met Office,2023-06-27,03 STAFF COSTS T&S,SERVICES,HCR LTD,481034,453.7,733 7205 46
BEIS,Met Office,2023-06-27,03 STAFF COSTS T&S,SERVICES,HCR LTD,481052,10553,733 7205 46
BEIS,Met Office,2023-06-06,03 STAFF COSTS T&S,SERVICES,HCR LTD,480214,14404.96,733 7205 46
BEIS,Met Office,2023-06-02,03 STAFF COSTS T&S,SERVICES,HITACHI CAPITAL VEHICLE SOLUTIONS,480270,48.36,GB 823 8248 22
BEIS,Met Office,2023-06-02,11 SERVICES,SERVICES,HITACHI CAPITAL VEHICLE SOLUTIONS,480344,318.72,GB 823 8248 22
BEIS,Met Office,2023-06-07,07 EQUIPMENT,SERVICES,Hydrosphere Uk Limited,469243,-336,641275549
BEIS,Met Office,2023-06-07,10 EQUIPMENT MAINTENANCE,SERVICES,Hydrosphere Uk Limited,480489,611,641275549
BEIS,Met Office,2023-06-07,10 EQUIPMENT MAINTENANCE,SERVICES,Hydrosphere Uk Limited,480489,7209,641275549
BEIS,Met Office,2023-06-07,10 EQUIPMENT MAINTENANCE,SERVICES,Hydrosphere Uk Limited,480489,14880,641275549
BEIS,Met Office,2023-06-14,13 MISCELLANEOUS,SERVICES,IMAGETEK SYSTEMS LTD,480860,5297.15,GB586331424
BEIS,Met Office,2023-06-14,11 SERVICES,SERVICES,INMARSAT SOLUTIONS (CANADA) INC,480378,44.46,766144223
BEIS,Met Office,2023-06-14,11 SERVICES,SERVICES,INMARSAT SOLUTIONS (CANADA) INC,480871,44.46,766144223
BEIS,Met Office,2023-06-14,11 SERVICES,SERVICES,INMARSAT SOLUTIONS (CANADA) INC,479304,88.2,766144223
BEIS,Met Office,2023-06-14,11 SERVICES,SERVICES,INMARSAT SOLUTIONS (CANADA) INC,480870,88.92,766144223
BEIS,Met Office,2023-06-14,11 SERVICES,SERVICES,INMARSAT SOLUTIONS (CANADA) INC,478121,2117.86,766144223
BEIS,Met Office,2023-06-27,11 SERVICES,SERVICES,INMARSAT SOLUTIONS (CANADA) INC,474686,2187.68,766144223
BEIS,Met Office,2023-06-12,10 EQUIPMENT MAINTENANCE,SERVICES,ISOTHERMAL TECHNOLOGY LTD,480697,200,325108979
BEIS,Met Office,2023-06-07,11 SERVICES,SERVICES,J J HARRISON LANDSCAPES LTD,480496,270,317 0006 12
BEIS,Met Office,2023-06-08,06 ACCOMMODATION,SERVICES,LINCOLN POLYTHENE / HOBSON HOLDINGS,480587,270,267249279
BEIS,Met Office,2023-06-13,06 ACCOMMODATION,SERVICES,LINCOLN POLYTHENE / HOBSON HOLDINGS,480694,270,267249279
BEIS,Met Office,2023-06-08,11 SERVICES,SERVICES,MADE TECH,480589,270955.71,938565184
BEIS,Met Office,2023-06-21,13 MISCELLANEOUS,SERVICES,MEIHUIZEN INTERNATIONAL,480975,465.97,4450101763
BEIS,Met Office,2023-06-13,08 SOFTWARE LICENCES,SERVICES,MERKLE ONE,480753,8315,GB478022835
BEIS,Met Office,2023-06-28,07 EQUIPMENT,SERVICES,METOCEAN TELEMATICS LTD,11099,129.19,-
BEIS,Met Office,2023-06-21,07 EQUIPMENT,SERVICES,METOCEAN TELEMATICS LTD,11029,133.56,-
BEIS,Met Office,2023-06-22,STOCK,SERVICES,Metspec Ltd,476678,0,738825202
BEIS,Met Office,2023-06-22,TRADE CREDITORS,SERVICES,Metspec Ltd,476678,9804,738825202
BEIS,Met Office,2023-06-14,11 SERVICES,SERVICES,NSSL GLOBAL LTD,11080,56.33,725151948
BEIS,Met Office,2023-06-14,11 SERVICES,SERVICES,NSSL GLOBAL LTD,11079,72.43,725151948
BEIS,Met Office,2023-06-02,11 SERVICES,SERVICES,PARTNERS FOR LEADERSHIP,479601,5250,402266435
BEIS,Met Office,2023-06-02,13 MISCELLANEOUS,SERVICES,PETERS & MAY GLOBAL LOGISTICS LTD,480268,1215.11,995183276
BEIS,Met Office,2023-06-26,13 MISCELLANEOUS,SERVICES,QROMETRIC LIMITED,481111,25,203980028
BEIS,Met Office,2023-06-26,10 EQUIPMENT MAINTENANCE,SERVICES,QROMETRIC LIMITED,481111,2175,203980028
BEIS,Met Office,2023-06-08,10 EQUIPMENT MAINTENANCE,SERVICES,R S Aqua Ltd,467463,-378,370059760
BEIS,Met Office,2023-06-08,07 EQUIPMENT,SERVICES,R S Aqua Ltd,480533,8470,370059760
BEIS,Met Office,2023-06-08,11 SERVICES,SERVICES,ROCKSURE SYSTEMS LTD T/A PEOPLESAFE,480635,782.01,859951462
BEIS,Met Office,2023-06-12,13 MISCELLANEOUS,SERVICES,Royal Meteorological Society,480203,193.47,-
BEIS,Met Office,2023-06-12,13 MISCELLANEOUS,SERVICES,Royal Meteorological Society,480203,557.53,-
BEIS,Met Office,2023-06-19,11 SERVICES,SERVICES,SOFTWIRE TECHNOLOGY LIMITED,480910,4200,752 1253 57
BEIS,Met Office,2023-06-07,13 MISCELLANEOUS,SERVICES,SPRINGER CUSTOMER SERVICE CENTER GMBH,24903,9249.55,209719094
BEIS,Met Office,2023-06-23,03 STAFF COSTS T&S,SERVICES,STORAGE FACTORY,480970,185,130 5237 12
BEIS,Met Office,2023-06-14,10 EQUIPMENT MAINTENANCE,SERVICES,TRESCAL,480811,175,GB 115 1045 67
BEIS,Met Office,2023-06-29,10 EQUIPMENT MAINTENANCE,SERVICES,TRESCAL,481226,239,GB 115 1045 67
BEIS,Met Office,2023-06-16,11 SERVICES,SERVICES,Trinity House,480806,1862.1,243120414
BEIS,Met Office,2023-06-15,07 EQUIPMENT,SERVICES,Trinity House,480807,2128.95,243120414
BEIS,Met Office,2023-06-16,11 SERVICES,SERVICES,Trinity House,480804,2240,243120414
BEIS,Met Office,2023-06-15,07 EQUIPMENT,SERVICES,Trinity House,480807,3443.96,243120414
BEIS,Met Office,2023-06-16,11 SERVICES,SERVICES,Trinity House,480805,3962.35,243120414
BEIS,Met Office,2023-06-19,11 SERVICES,SERVICES,UK TELEMATICS LIMITED,480961,68.25,GB763051643
BEIS,Met Office,2023-06-26,11 SERVICES,SERVICES,VOLKSWAGEN GROUP LEASING,480511,-50,BG745963883
BEIS,Met Office,2023-06-26,11 SERVICES,SERVICES,VOLKSWAGEN GROUP LEASING,480512,-50,BG745963883
BEIS,Met Office,2023-06-26,11 SERVICES,SERVICES,VOLKSWAGEN GROUP LEASING,480247,50,BG745963883
BEIS,Met Office,2023-06-26,11 SERVICES,SERVICES,VOLKSWAGEN GROUP LEASING,480248,50,BG745963883
BEIS,Met Office,2023-06-26,11 SERVICES,SERVICES,VOLKSWAGEN GROUP LEASING,481125,131.05,BG745963883
BEIS,Met Office,2023-06-26,11 SERVICES,SERVICES,VOLKSWAGEN GROUP LEASING,481118,134.61,BG745963883
BEIS,Met Office,2023-06-26,11 SERVICES,SERVICES,VOLKSWAGEN GROUP LEASING,481122,134.77,BG745963883
BEIS,Met Office,2023-06-26,11 SERVICES,SERVICES,VOLKSWAGEN GROUP LEASING,481126,155.15,BG745963883
BEIS,Met Office,2023-06-26,11 SERVICES,SERVICES,VOLKSWAGEN GROUP LEASING,481127,195.57,BG745963883
BEIS,Met Office,2023-06-26,11 SERVICES,SERVICES,VOLKSWAGEN GROUP LEASING,481119,199.82,BG745963883
BEIS,Met Office,2023-06-26,11 SERVICES,SERVICES,VOLKSWAGEN GROUP LEASING,481124,213.27,BG745963883
BEIS,Met Office,2023-06-26,11 SERVICES,SERVICES,VOLKSWAGEN GROUP LEASING,481120,248.12,BG745963883
BEIS,Met Office,2023-06-26,11 SERVICES,SERVICES,VOLKSWAGEN GROUP LEASING,481117,260.26,BG745963883
BEIS,Met Office,2023-06-26,11 SERVICES,SERVICES,VOLKSWAGEN GROUP LEASING,481128,260.65,BG745963883
BEIS,Met Office,2023-06-26,11 SERVICES,SERVICES,VOLKSWAGEN GROUP LEASING,481123,289.9,BG745963883
BEIS,Met Office,2023-06-12,13 MISCELLANEOUS,SERVICES,VOSPERS,480482,352.16,144147974
BEIS,Met Office,2023-06-02,13 MISCELLANEOUS,SERVICES,WEC GROUP LTD,477878,114.29,176472775
BEIS,Met Office,2023-06-28,11 SERVICES,TECHNOLOGY AND CIO,AGILIFY LTD,481204,9820.13,GB943575106
BEIS,Met Office,2023-06-06,11 SERVICES,TECHNOLOGY AND CIO,AKAMAI TECHNOLOGIES LTD,480447,4937.28,745091237
BEIS,Met Office,2023-06-06,11 SERVICES,TECHNOLOGY AND CIO,AKAMAI TECHNOLOGIES LTD,480447,25920.75,745091237
BEIS,Met Office,2023-06-07,11 SERVICES,TECHNOLOGY AND CIO,AMAZON WEB SERVICES EMEA SARL,11095,1815.88,GB 283644382
BEIS,Met Office,2023-06-07,11 SERVICES,TECHNOLOGY AND CIO,AMAZON WEB SERVICES EMEA SARL,11096,22860.23,GB 283644382
BEIS,Met Office,2023-06-07,11 SERVICES,TECHNOLOGY AND CIO,AMAZON WEB SERVICES EMEA SARL,11094,272132.96,GB 283644382
BEIS,Met Office,2023-06-26,08 SOFTWARE LICENCES,TECHNOLOGY AND CIO,ARDOQ UK LIMITED,481083,6000,GB 307689963
BEIS,Met Office,2023-06-26,08 SOFTWARE LICENCES,TECHNOLOGY AND CIO,ARDOQ UK LIMITED,481082,139277.88,GB 307689963
BEIS,Met Office,2023-06-16,11 SERVICES,TECHNOLOGY AND CIO,BAE SYSTEMS APPLIED INTELLIGENCE LIMITED,480859,1763.66,GB641407169
BEIS,Met Office,2023-06-09,11 SERVICES,TECHNOLOGY AND CIO,BAE SYSTEMS APPLIED INTELLIGENCE LIMITED,480524,3300,GB641407169
BEIS,Met Office,2023-06-19,11 SERVICES,TECHNOLOGY AND CIO,BAE SYSTEMS APPLIED INTELLIGENCE LIMITED,480529,5062.5,GB641407169
BEIS,Met Office,2023-06-09,11 SERVICES,TECHNOLOGY AND CIO,BAE SYSTEMS APPLIED INTELLIGENCE LIMITED,480520,5625,GB641407169
BEIS,Met Office,2023-06-09,11 SERVICES,TECHNOLOGY AND CIO,BAE SYSTEMS APPLIED INTELLIGENCE LIMITED,480526,5939.94,GB641407169
BEIS,Met Office,2023-06-09,11 SERVICES,TECHNOLOGY AND CIO,BAE SYSTEMS APPLIED INTELLIGENCE LIMITED,480514,5940,GB641407169
BEIS,Met Office,2023-06-09,11 SERVICES,TECHNOLOGY AND CIO,BAE SYSTEMS APPLIED INTELLIGENCE LIMITED,480510,6270,GB641407169
BEIS,Met Office,2023-06-09,11 SERVICES,TECHNOLOGY AND CIO,BAE SYSTEMS APPLIED INTELLIGENCE LIMITED,480515,6356.25,GB641407169
BEIS,Met Office,2023-06-09,11 SERVICES,TECHNOLOGY AND CIO,BAE SYSTEMS APPLIED INTELLIGENCE LIMITED,480509,6600,GB641407169
BEIS,Met Office,2023-06-09,11 SERVICES,TECHNOLOGY AND CIO,BAE SYSTEMS APPLIED INTELLIGENCE LIMITED,480525,7312.5,GB641407169
BEIS,Met Office,2023-06-09,11 SERVICES,TECHNOLOGY AND CIO,BAE SYSTEMS APPLIED INTELLIGENCE LIMITED,480507,7507.5,GB641407169
BEIS,Met Office,2023-06-09,11 SERVICES,TECHNOLOGY AND CIO,BAE SYSTEMS APPLIED INTELLIGENCE LIMITED,480508,8100,GB641407169
BEIS,Met Office,2023-06-09,11 SERVICES,TECHNOLOGY AND CIO,BAE SYSTEMS APPLIED INTELLIGENCE LIMITED,480532,8100,GB641407169
BEIS,Met Office,2023-06-09,11 SERVICES,TECHNOLOGY AND CIO,BAE SYSTEMS APPLIED INTELLIGENCE LIMITED,480531,8656,GB641407169
BEIS,Met Office,2023-06-09,11 SERVICES,TECHNOLOGY AND CIO,BAE SYSTEMS APPLIED INTELLIGENCE LIMITED,480519,9197,GB641407169
BEIS,Met Office,2023-06-20,11 SERVICES,TECHNOLOGY AND CIO,BAE SYSTEMS APPLIED INTELLIGENCE LIMITED,480976,9240,GB641407169
BEIS,Met Office,2023-06-09,11 SERVICES,TECHNOLOGY AND CIO,BAE SYSTEMS APPLIED INTELLIGENCE LIMITED,480523,9738,GB641407169
BEIS,Met Office,2023-06-09,11 SERVICES,TECHNOLOGY AND CIO,BAE SYSTEMS APPLIED INTELLIGENCE LIMITED,480517,9849,GB641407169
BEIS,Met Office,2023-06-09,11 SERVICES,TECHNOLOGY AND CIO,BAE SYSTEMS APPLIED INTELLIGENCE LIMITED,480530,10890,GB641407169
BEIS,Met Office,2023-06-09,11 SERVICES,TECHNOLOGY AND CIO,BAE SYSTEMS APPLIED INTELLIGENCE LIMITED,480521,12194,GB641407169
BEIS,Met Office,2023-06-14,11 SERVICES,TECHNOLOGY AND CIO,BAE SYSTEMS APPLIED INTELLIGENCE LIMITED,480810,12540,GB641407169
BEIS,Met Office,2023-06-09,11 SERVICES,TECHNOLOGY AND CIO,BAE SYSTEMS APPLIED INTELLIGENCE LIMITED,480516,13132,GB641407169
BEIS,Met Office,2023-06-19,11 SERVICES,TECHNOLOGY AND CIO,BAE SYSTEMS APPLIED INTELLIGENCE LIMITED,480802,14539,GB641407169
BEIS,Met Office,2023-06-09,11 SERVICES,TECHNOLOGY AND CIO,BAE SYSTEMS APPLIED INTELLIGENCE LIMITED,480513,14656.25,GB641407169
BEIS,Met Office,2023-06-09,11 SERVICES,TECHNOLOGY AND CIO,BAE SYSTEMS APPLIED INTELLIGENCE LIMITED,480518,15300,GB641407169
BEIS,Met Office,2023-06-14,11 SERVICES,TECHNOLOGY AND CIO,BAE SYSTEMS APPLIED INTELLIGENCE LIMITED,480809,15477,GB641407169
BEIS,Met Office,2023-06-09,11 SERVICES,TECHNOLOGY AND CIO,BAE SYSTEMS APPLIED INTELLIGENCE LIMITED,480527,15594.25,GB641407169
BEIS,Met Office,2023-06-09,11 SERVICES,TECHNOLOGY AND CIO,BAE SYSTEMS APPLIED INTELLIGENCE LIMITED,480528,16884,GB641407169
BEIS,Met Office,2023-06-09,11 SERVICES,TECHNOLOGY AND CIO,BAE SYSTEMS APPLIED INTELLIGENCE LIMITED,480522,17445,GB641407169
BEIS,Met Office,2023-06-12,11 SERVICES,TECHNOLOGY AND CIO,BJSS LIMITED,480561,79638.5,613295452
BEIS,Met Office,2023-06-21,10 EQUIPMENT MAINTENANCE,TECHNOLOGY AND CIO,CABINET OFFICE - COF LEAD ACCOUNT,481023,6431,-
BEIS,Met Office,2023-06-16,10 EQUIPMENT MAINTENANCE,TECHNOLOGY AND CIO,CDW LTD,480864,10122.28,902194939
BEIS,Met Office,2023-06-19,11 SERVICES,TECHNOLOGY AND CIO,CLOUDREACH EUROPE LIMITED,480908,3506.47,978187168
BEIS,Met Office,2023-06-12,11 SERVICES,TECHNOLOGY AND CIO,CLOUDREACH EUROPE LIMITED,480592,5150,978187168
BEIS,Met Office,2023-06-13,INFORMATION TECHNOLOGY,TECHNOLOGY AND CIO,COMPUTACENTER (UK) LTD,480443,56.52,490334648
BEIS,Met Office,2023-06-02,08 SOFTWARE LICENCES,TECHNOLOGY AND CIO,COMPUTACENTER (UK) LTD,480294,1225.76,490334648
BEIS,Met Office,2023-06-13,07 EQUIPMENT,TECHNOLOGY AND CIO,COMPUTACENTER (UK) LTD,480738,1335.5,490334648
BEIS,Met Office,2023-06-19,07 EQUIPMENT,TECHNOLOGY AND CIO,COMPUTACENTER (UK) LTD,480950,1444.25,490334648
BEIS,Met Office,2023-06-07,08 SOFTWARE LICENCES,TECHNOLOGY AND CIO,COMPUTACENTER (UK) LTD,480366,2500,490334648
BEIS,Met Office,2023-06-14,07 EQUIPMENT,TECHNOLOGY AND CIO,COMPUTACENTER (UK) LTD,480861,3756,490334648
BEIS,Met Office,2023-06-19,11 SERVICES,TECHNOLOGY AND CIO,COMPUTACENTER (UK) LTD,480964,3789.47,490334648
BEIS,Met Office,2023-06-26,INFORMATION TECHNOLOGY,TECHNOLOGY AND CIO,COMPUTACENTER (UK) LTD,481141,58816,490334648
BEIS,Met Office,2023-06-13,INFORMATION TECHNOLOGY,TECHNOLOGY AND CIO,COMPUTACENTER (UK) LTD,480443,61576.33,490334648
BEIS,Met Office,2023-06-26,INFORMATION TECHNOLOGY,TECHNOLOGY AND CIO,COMPUTACENTER (UK) LTD,481141,74004,490334648
BEIS,Met Office,2023-06-02,INFORMATION TECHNOLOGY,TECHNOLOGY AND CIO,COMPUTACENTER (UK) LTD,480341,198077.84,490334648
BEIS,Met Office,2023-06-23,11 SERVICES,TECHNOLOGY AND CIO,ENTERPRISEDB UK LIMITED,480015,15739.29,GB 886 1062 11
BEIS,Met Office,2023-06-27,08 SOFTWARE LICENCES,TECHNOLOGY AND CIO,GOOGLE IRELAND LTD,481068,52.22,6388047V
BEIS,Met Office,2023-06-07,08 SOFTWARE LICENCES,TECHNOLOGY AND CIO,"IBL SOFTWARE ENGINEERING, SPOL S.R.O.",24888,22283.33,SK2020241883
BEIS,Met Office,2023-06-14,SOFTWARE LICENCES,TECHNOLOGY AND CIO,"IBL SOFTWARE ENGINEERING, SPOL S.R.O.",24904,154892.99,SK2020241883
BEIS,Met Office,2023-06-05,08 SOFTWARE LICENCES,TECHNOLOGY AND CIO,Ibm United Kingdom Ltd,480380,7348.2,107328000
BEIS,Met Office,2023-06-05,11 SERVICES,TECHNOLOGY AND CIO,Ibm United Kingdom Ltd,480375,13440.5,107328000
BEIS,Met Office,2023-06-02,11 SERVICES,TECHNOLOGY AND CIO,LAFOSSE ASSOCIATES,480131,14850,GB 360026537
BEIS,Met Office,2023-06-29,11 SERVICES,TECHNOLOGY AND CIO,LAFOSSE ASSOCIATES,480130,15525,GB 360026537
BEIS,Met Office,2023-06-02,11 SERVICES,TECHNOLOGY AND CIO,LAFOSSE ASSOCIATES,480129,18150,GB 360026537
BEIS,Met Office,2023-06-19,08 SOFTWARE LICENCES,TECHNOLOGY AND CIO,LOOP1 UK LIMITED,480962,4382.1,02631536
BEIS,Met Office,2023-06-28,08 SOFTWARE LICENCES,TECHNOLOGY AND CIO,NEXUS OPEN SYSTEMS LTD,481190,3251.4,723221673
BEIS,Met Office,2023-06-09,10 EQUIPMENT MAINTENANCE,TECHNOLOGY AND CIO,ORACLE CORPORATION UK LTD,480645,3607.5,391313073
BEIS,Met Office,2023-06-09,10 EQUIPMENT MAINTENANCE,TECHNOLOGY AND CIO,ORACLE CORPORATION UK LTD,480645,18300.56,391313073
BEIS,Met Office,2023-06-13,10 EQUIPMENT MAINTENANCE,TECHNOLOGY AND CIO,ORACLE CORPORATION UK LTD,480796,21908.06,391313073
BEIS,Met Office,2023-06-15,08 SOFTWARE LICENCES,TECHNOLOGY AND CIO,"PHOENIX SOFTWARE INTERNATIONAL, INC",11107,-7475.28,-
BEIS,Met Office,2023-06-15,08 SOFTWARE LICENCES,TECHNOLOGY AND CIO,"PHOENIX SOFTWARE INTERNATIONAL, INC",11073,7538.68,-
BEIS,Met Office,2023-06-12,08 SOFTWARE LICENCES,TECHNOLOGY AND CIO,PRESENTATION CARTOGRAPHY LTD,480581,268.58,-
BEIS,Met Office,2023-06-12,08 SOFTWARE LICENCES,TECHNOLOGY AND CIO,PRESENTATION CARTOGRAPHY LTD,480581,1074.32,-
BEIS,Met Office,2023-06-07,11 SERVICES,TECHNOLOGY AND CIO,QA LTD,480172,-300,864455303
BEIS,Met Office,2023-06-28,11 SERVICES,TECHNOLOGY AND CIO,QA LTD,480751,3600,864455303
BEIS,Met Office,2023-06-27,11 SERVICES,TECHNOLOGY AND CIO,QA LTD,480867,4620,864455303
BEIS,Met Office,2023-06-19,11 SERVICES,TECHNOLOGY AND CIO,QA LTD,480868,5250,864455303
BEIS,Met Office,2023-06-23,11 SERVICES,TECHNOLOGY AND CIO,QA LTD,480752,6000,864455303
BEIS,Met Office,2023-06-26,11 SERVICES,TECHNOLOGY AND CIO,QA LTD,481016,10200,864455303
BEIS,Met Office,2023-06-28,11 SERVICES,TECHNOLOGY AND CIO,QA LTD,481015,11400,864455303
BEIS,Met Office,2023-06-27,11 SERVICES,TECHNOLOGY AND CIO,QA LTD,480750,13340,864455303
BEIS,Met Office,2023-06-27,11 SERVICES,TECHNOLOGY AND CIO,QA LTD,479872,28770,864455303
BEIS,Met Office,2023-06-07,11 SERVICES,TECHNOLOGY AND CIO,QA LTD,480008,54000,864455303
BEIS,Met Office,2023-06-19,11 SERVICES,TECHNOLOGY AND CIO,SPECIALIST COMPUTER CENTRES,480930,21077.55,313651680
BEIS,Met Office,2023-06-05,11 SERVICES,TECHNOLOGY AND CIO,SPECIALIST COMPUTER CENTRES,480356,55268.47,313651680
BEIS,Met Office,2023-06-05,08 SOFTWARE LICENCES,TECHNOLOGY AND CIO,SPECIALIST COMPUTER CENTRES,480356,1367711.7,313651680
BEIS,Met Office,2023-06-06,11 SERVICES,TECHNOLOGY AND CIO,STAYAHEAD TRAINING LTD,480438,1,607958994
BEIS,Met Office,2023-06-06,11 SERVICES,TECHNOLOGY AND CIO,STAYAHEAD TRAINING LTD,480438,1,607958994
BEIS,Met Office,2023-06-06,11 SERVICES,TECHNOLOGY AND CIO,STAYAHEAD TRAINING LTD,480439,1,607958994
BEIS,Met Office,2023-06-06,11 SERVICES,TECHNOLOGY AND CIO,STAYAHEAD TRAINING LTD,480439,1,607958994
BEIS,Met Office,2023-06-06,11 SERVICES,TECHNOLOGY AND CIO,STAYAHEAD TRAINING LTD,480441,1,607958994
BEIS,Met Office,2023-06-06,11 SERVICES,TECHNOLOGY AND CIO,STAYAHEAD TRAINING LTD,480441,1,607958994
BEIS,Met Office,2023-06-06,11 SERVICES,TECHNOLOGY AND CIO,STAYAHEAD TRAINING LTD,480441,893,607958994
BEIS,Met Office,2023-06-06,11 SERVICES,TECHNOLOGY AND CIO,STAYAHEAD TRAINING LTD,480439,1793,607958994
BEIS,Met Office,2023-06-06,11 SERVICES,TECHNOLOGY AND CIO,STAYAHEAD TRAINING LTD,480438,2248,607958994
BEIS,Met Office,2023-06-28,07 EQUIPMENT,TECHNOLOGY AND CIO,WESTERMO DATA COMMUNICATIONS LTD,481046,12.5,656570708
BEIS,Met Office,2023-06-28,07 EQUIPMENT,TECHNOLOGY AND CIO,WESTERMO DATA COMMUNICATIONS LTD,481046,1446.7,656570708
BEIS,Met Office,2023-06-02,11 SERVICES,TECHNOLOGY AND CIO,WIREFAST LTD,480355,952.74,749536001
BEIS,Met Office,2023-06-02,11 SERVICES,TECHNOLOGY AND CIO,WIREFAST LTD,480353,1556.47,749536001
BEIS,Met Office,2023-06-26,08 SOFTWARE LICENCES,TECHNOLOGY AND CIO,WSO2 (UK) LTD,481116,135430.09,977308971
BEIS,Met Office,2023-06-13,11 SERVICES,TECHNOLOGY AND CIO,WT CONSULTANCY (SW) LTD,480384,1400,223 4662 25
BEIS,Met Office,2023-06-13,11 SERVICES,TECHNOLOGY AND CIO,WT CONSULTANCY (SW) LTD,480385,1400,223 4662 25
BEIS,Met Office,2023-06-13,11 SERVICES,TECHNOLOGY AND CIO,WT CONSULTANCY (SW) LTD,480369,2450,223 4662 25
